fUST/lending_fUST_20250120
["ID","MTS","AMOUNT","RATE_DAILY","PERIOD"]
[349623282,1737331832486,-597.0553222,0.00020511,2]
[349623284,1737331832495,-3194.47697369,0.00020898,2]
[349623286,1737331832507,-1942.52302631,0.00020898,2]
[349623288,1737331832516,-469.72558081,0.00021609,2]
[349623290,1737331832525,-628.25139288,0.0002172,2]
[349623292,1737331832537,-446.98922816,0.0002172,2]
[349623294,1737331832546,-697.21145781,0.00021817,2]
[349623295,1737331832556,-191.753,0.00021916,2]
[349623297,1737331832565,-300.0,0.00021916,2]
[349623299,1737331832575,-500.0,0.00021917,3]
[349623301,1737331832584,-500.0,0.00021917,3]
[349623303,1737331832594,-500.0,0.00021917,3]
[349623304,1737331832604,-364.33422462,0.00021917,3]
[349623306,1737331832613,-500.0,0.00021917,3]
[349623308,1737331832622,-500.0,0.00021917,3]
[349623310,1737331832631,-500.0,0.00021917,3]
[349623312,1737331832640,-500.0,0.00021917,3]
[349623313,1737331832650,-500.0,0.00021917,3]
[349623315,1737331832659,-500.0,0.00021917,3]
[349623317,1737331832668,-500.0,0.00021917,3]
[349623319,1737331832677,-49.71208941,0.00021917,3]
[349623793,1737331838490,-450.28791059,0.00021917,3]
[349623795,1737331838500,-500.0,0.00021917,3]
[349623796,1737331838509,-500.0,0.00021917,3]
[349623798,1737331838518,-500.0,0.00021917,3]
[349623800,1737331838527,-500.0,0.00021917,3]
[349623802,1737331838538,-500.0,0.00021917,3]
[349623804,1737331838551,-500.0,0.00021917,3]
[349623806,1737331838560,-500.0,0.00021917,3]
[349623808,1737331838570,-500.0,0.00021917,3]
[349623811,1737331838579,-500.0,0.00021917,3]
[349623814,1737331838591,-500.0,0.00021917,3]
[349623816,1737331838602,-500.0,0.00021917,3]
[349623818,1737331838612,-500.0,0.00021917,3]
[349623820,1737331838621,-500.0,0.00021917,3]
[349623822,1737331838631,-500.0,0.00021917,3]
[349623824,1737331838640,-500.0,0.00021917,3]
[349623826,1737331838649,-500.0,0.00021917,3]
[349623828,1737331838658,-500.0,0.00021917,3]
[349623830,1737331838668,-500.0,0.00021917,3]
[349623831,1737331838678,-500.0,0.00021917,3]
[349623833,1737331838687,-365.82308792,0.00021917,3]
[349623835,1737331838696,-500.0,0.00021917,3]
[349623837,1737331838706,-500.0,0.00021917,3]
[349623839,1737331838716,-419.29041435,0.00021917,3]
[349623841,1737331838726,-500.0,0.00021917,3]
[349623843,1737331838741,-368.74434216,0.00021917,3]
[349623845,1737331838751,-500.0,0.00021917,3]
[349623847,1737331838760,-500.0,0.00021917,3]
[349623849,1737331838769,-500.0,0.00021917,3]
[349623851,1737331838779,-359.82714266,0.00021917,3]
[349623853,1737331838789,-500.0,0.00021917,3]
[349623855,1737331838798,-327.16141434,0.00021917,3]
[349623858,1737331838821,-500.0,0.00021917,3]
[349623861,1737331838833,-189.09,0.00021917,3]
[349623863,1737331838844,-500.0,0.00021917,3]
[349623865,1737331838856,-500.0,0.00021917,3]
[349623866,1737331838866,-500.0,0.00021917,3]
[349623868,1737331838877,-500.0,0.00021917,3]
[349623871,1737331838888,-500.0,0.00021917,3]
[349623873,1737331838900,-74.46917458,0.00021917,3]
[349624058,1737331840726,-425.53082542,0.00021917,3]
[349624060,1737331840742,-500.0,0.00021917,3]
[349624062,1737331840752,-500.0,0.00021917,3]
[349624065,1737331840762,-500.0,0.00021917,3]
[349624066,1737331840772,-500.0,0.00021917,3]
[349624067,1737331840782,-500.0,0.00021917,3]
[349624068,1737331840792,-500.0,0.00021917,3]
[349624069,1737331840801,-500.0,0.00021917,3]
[349624070,1737331840811,-500.0,0.00021917,3]
[349624071,1737331840821,-500.0,0.00021917,3]
[349624073,1737331840830,-500.0,0.00021917,3]
[349624076,1737331840841,-500.0,0.00021917,3]
[349624078,1737331840851,-500.0,0.00021917,3]
[349624080,1737331840860,-500.0,0.00021917,3]
[349624082,1737331840870,-500.0,0.00021917,3]
[349624084,1737331840879,-500.0,0.00021917,3]
[349624086,1737331840889,-500.0,0.00021917,3]
[349624088,1737331840898,-500.0,0.00021917,3]
[349624090,1737331840908,-500.0,0.00021917,3]
[349624092,1737331840917,-500.0,0.00021917,3]
[349624094,1737331840927,-500.0,0.00021917,3]
[349624096,1737331840937,-568.71,0.00021917,2]
[349624098,1737331840946,-500.0,0.00021917,3]
[349624100,1737331840956,-500.0,0.00021917,3]
[349624102,1737331840965,-500.0,0.00021917,3]
[349624104,1737331840975,-381.03952581,0.00021917,3]
[349624106,1737331840988,-489.98121912,0.00021917,3]
[349624108,1737331840998,-2332.42,0.00021917,3]
[349624110,1737331841009,-500.0,0.00021917,3]
[349624112,1737331841018,-500.0,0.00021917,3]
[349624114,1737331841029,-500.0,0.00021917,3]
[349624116,1737331841041,-500.0,0.00021917,3]
[349624118,1737331841051,-500.0,0.00021917,3]
[349624120,1737331841060,-2934.57495662,0.00021917,3]
[349624369,1737331843556,-500.0,0.00021917,3]
[349624371,1737331843567,-500.0,0.00021917,3]
[349624373,1737331843577,-500.0,0.00021917,3]
[349624375,1737331843587,-500.0,0.00021917,3]
[349624377,1737331843597,-1744.06,0.00021917,3]
[349624379,1737331843607,-500.0,0.00021917,3]
[349624380,1737331843617,-600.0,0.00021917,3]
[349624382,1737331843627,-500.0,0.00021917,3]
[349624384,1737331843636,-500.0,0.00021917,3]
[349624386,1737331843646,-1094.99,0.00021917,3]
[349624388,1737331843656,-518.92,0.00021917,3]
[349624390,1737331843666,-500.0,0.00021917,3]
[349624393,1737331843676,-2816.29,0.00021917,3]
[349624395,1737331843685,-500.0,0.00021917,3]
[349624397,1737331843695,-597.22022739,0.00021917,3]
[349624399,1737331843704,-500.0,0.00021917,3]
[349624401,1737331843714,-515.77,0.00021917,3]
[349624403,1737331843724,-500.0,0.00021917,3]
[349624405,1737331843740,-500.0,0.00021917,3]
[349624408,1737331843750,-500.0,0.00021917,3]
[349624410,1737331843759,-500.0,0.00021917,3]
[349624413,1737331843769,-500.0,0.00021917,3]
[349624415,1737331843779,-500.0,0.00021917,3]
[349624417,1737331843789,-500.0,0.00021917,3]
[349624419,1737331843799,-7919.24,0.00021917,3]
[349624421,1737331843810,-500.0,0.00021917,3]
[349624423,1737331843820,-500.0,0.00021917,3]
[349624426,1737331843831,-500.0,0.00021917,3]
[349624429,1737331843841,-481.45645737,0.00021917,3]
[349624458,1737331844066,-42.80243019,0.00021917,3]
[349624460,1737331844076,-500.0,0.00021917,3]
[349624462,1737331844087,-975.66,0.00021917,3]
[349624464,1737331844098,-1008.87325285,0.00021917,3]
[349624568,1737331846445,-1316.85169235,0.00021698,2]
[349624569,1737331846457,-1077.74696907,0.00021698,2]
[349624571,1737331846466,-1922.67674715,0.00021917,3]
[349624573,1737331846476,-500.0,0.00021917,3]
[349624575,1737331846486,-5223.66,0.00021917,3]
[349624577,1737331846496,-500.0,0.00021917,3]
[349624578,1737331846505,-500.0,0.00021917,3]
[349624579,1737331846516,-516.29,0.00021917,3]
[349624580,1737331846526,-500.0,0.00021917,3]
[349624581,1737331846537,-500.0,0.00021917,3]
[349624583,1737331846546,-500.0,0.00021917,3]
[349624585,1737331846555,-1116.88,0.00021917,3]
[349624588,1737331846564,-500.0,0.00021917,3]
[349624589,1737331846573,-500.0,0.00021917,3]
[349624590,1737331846582,-1436.56,0.00021917,3]
[349624591,1737331846592,-517.83441538,0.00021917,3]
[349624592,1737331846602,-500.0,0.00021917,3]
[349624593,1737331846611,-886.96,0.00021917,3]
[349624594,1737331846621,-500.0,0.00021917,3]
[349624595,1737331846630,-506.49,0.00021917,3]
[349624596,1737331846640,-500.0,0.00021917,3]
[349624597,1737331846648,-500.0,0.00021917,3]
[349624598,1737331846658,-500.0,0.00021917,3]
[349624599,1737331846667,-500.0,0.00021917,3]
[349624600,1737331846677,-500.0,0.00021917,3]
[349624601,1737331846687,-500.0,0.00021917,3]
[349624602,1737331846696,-500.0,0.00021917,3]
[349624603,1737331846706,-1089.7,0.00021917,3]
[349624604,1737331846716,-500.0,0.00021917,3]
[349624605,1737331846731,-500.0,0.00021917,3]
[349624606,1737331846747,-500.0,0.00021917,3]
[349624607,1737331846757,-2679.32,0.00021917,3]
[349624608,1737331846768,-500.0,0.00021917,3]
[349624609,1737331846780,-500.0,0.00021917,3]
[349624610,1737331846789,-500.0,0.00021917,3]
[349624611,1737331846798,-500.0,0.00021917,3]
[349624612,1737331846808,-4881.27,0.00021917,3]
[349624613,1737331846818,-500.0,0.00021917,3]
[349624614,1737331846828,-11987.1,0.00021917,3]
[349624615,1737331846838,-500.0,0.00021917,3]
[349624616,1737331846847,-500.0,0.00021917,3]
[349624617,1737331846857,-500.0,0.00021917,3]
[349624618,1737331846867,-1049.37,0.00021917,3]
[349624619,1737331846877,-500.0,0.00021917,3]
[349624620,1737331846887,-189.282432,0.00021989,2]
[349624621,1737331846896,-800.0000007,0.00022,7]
[349624622,1737331846905,-171.0,0.00022,2]
[349624623,1737331846914,-500.0,0.00022051,3]
[349624624,1737331846923,-500.0,0.00022053,3]
[349624625,1737331846933,-500.0,0.00022053,3]
[349624626,1737331846942,-500.0,0.00022053,3]
[349624627,1737331846951,-500.0,0.00022053,3]
[349624628,1737331846960,-500.0,0.00022053,3]
[349624629,1737331846970,-463.46045102,0.00022053,2]
[349624630,1737331846979,-429.46740726,0.00022053,2]
[349624631,1737331846993,-416.95497408,0.00022054,3]
[349624632,1737331847003,-500.0,0.00022054,3]
[349624633,1737331847018,-500.0,0.00022054,3]
[349624634,1737331847028,-500.0,0.00022054,3]
[349624635,1737331847037,-500.0,0.00022054,3]
[349624636,1737331847047,-500.0,0.00022054,3]
[349624637,1737331847059,-500.0,0.00022054,3]
[349624638,1737331847069,-500.0,0.00022054,3]
[349624639,1737331847078,-500.0,0.00022054,3]
[349624640,1737331847088,-500.0,0.00022054,3]
[349624641,1737331847098,-500.0,0.00022054,3]
[349624642,1737331847107,-500.0,0.00022054,3]
[349624643,1737331847117,-500.0,0.00022054,3]
[349624644,1737331847126,-500.0,0.00022054,3]
[349624645,1737331847137,-500.0,0.00022054,3]
[349624646,1737331847146,-500.0,0.00022054,3]
[349624647,1737331847156,-500.0,0.00022054,3]
[349624648,1737331847166,-500.0,0.00022054,3]
[349624649,1737331847176,-500.0,0.00022054,3]
[349624650,1737331847186,-500.0,0.00022054,3]
[349624651,1737331847195,-500.0,0.00022054,3]
[349624652,1737331847205,-500.0,0.00022054,3]
[349624653,1737331847214,-500.0,0.00022054,3]
[349624654,1737331847224,-500.0,0.00022054,3]
[349624655,1737331847234,-500.0,0.00022054,3]
[349624656,1737331847246,-497.56888914,0.00022054,3]
[349624657,1737331847256,-517.92,0.00022054,3]
[349624658,1737331847265,-500.0,0.00022054,3]
[349624659,1737331847275,-500.0,0.00022054,3]
[349624660,1737331847284,-500.0,0.00022054,3]
[349624661,1737331847293,-500.0,0.00022054,3]
[349624662,1737331847303,-500.0,0.00022054,3]
[349624663,1737331847312,-500.0,0.00022054,3]
[349624664,1737331847322,-257.2116859,0.00022054,3]
[349624665,1737331847332,-500.0,0.00022054,3]
[349624666,1737331847342,-500.0,0.00022054,3]
[349624667,1737331847351,-500.0,0.00022054,3]
[349624668,1737331847361,-500.0,0.00022054,3]
[349624669,1737331847370,-517.6667592,0.00022054,3]
[349624670,1737331847379,-500.0,0.00022054,3]
[349624671,1737331847388,-500.0,0.00022054,3]
[349624672,1737331847398,-459.53486951,0.00022054,3]
[349624673,1737331847407,-500.0,0.00022054,3]
[349624674,1737331847416,-500.0,0.00022054,3]
[349624675,1737331847425,-500.0,0.00022054,3]
[349624676,1737331847434,-500.0,0.00022054,3]
[349624677,1737331847443,-500.0,0.00022054,3]
[349624678,1737331847453,-500.0,0.00022054,3]
[349624679,1737331847462,-500.0,0.00022054,3]
[349624680,1737331847472,-500.0,0.00022054,3]
[349624681,1737331847482,-568.71,0.00022054,2]
[349624682,1737331847494,-500.0,0.00022054,3]
[349624683,1737331847503,-500.0,0.00022054,3]
[349624684,1737331847512,-2332.42,0.00022054,3]
[349624685,1737331847522,-641.72935191,0.00022054,3]
[349624686,1737331847531,-500.0,0.00022054,3]
[349624687,1737331847541,-500.0,0.00022054,3]
[349624688,1737331847550,-500.0,0.00022054,3]
[349624689,1737331847559,-500.0,0.00022054,3]
[349624690,1737331847568,-500.0,0.00022054,3]
[349624691,1737331847576,-500.0,0.00022054,3]
[349624692,1737331847585,-1744.06,0.00022054,3]
[349624693,1737331847595,-500.0,0.00022054,3]
[349624694,1737331847604,-500.0,0.00022054,3]
[349624695,1737331847615,-500.0,0.00022054,3]
[349624696,1737331847627,-518.92,0.00022054,3]
[349624697,1737331847637,-500.0,0.00022054,3]
[349624698,1737331847648,-2816.29,0.00022054,3]
[349624699,1737331847659,-500.0,0.00022054,3]
[349624700,1737331847668,-500.0,0.00022054,3]
[349624701,1737331847678,-515.77,0.00022054,3]
[349624702,1737331847688,-500.0,0.00022054,3]
[349624703,1737331847697,-500.0,0.00022054,3]
[349624704,1737331847707,-500.0,0.00022054,3]
[349624705,1737331847717,-223.1878319,0.00022054,3]
[349624706,1737331847727,-500.0,0.00022054,3]
[349624707,1737331847738,-500.0,0.00022054,3]
[349624708,1737331847748,-383.12525568,0.00022054,3]
[349624709,1737331847758,-7919.24,0.00022054,3]
[349624710,1737331847767,-500.0,0.00022054,3]
[349624711,1737331847777,-382.08918817,0.00022054,3]
[349624712,1737331847786,-500.0,0.00022054,3]
[349624713,1737331847795,-500.0,0.00022054,3]
[349624714,1737331847806,-975.66,0.00022054,3]
[349624715,1737331847815,-2931.55,0.00022054,3]
[349624716,1737331847824,-500.0,0.00022054,3]
[349624717,1737331847833,-5223.66,0.00022054,3]
[349624718,1737331847843,-500.0,0.00022054,3]
[349624719,1737331847852,-516.29,0.00022054,3]
[349624720,1737331847862,-500.0,0.00022054,3]
[349624721,1737331847871,-500.0,0.00022054,3]
[349624722,1737331847881,-500.0,0.00022054,3]
[349624723,1737331847891,-1116.88,0.00022054,3]
[349624724,1737331847900,-500.0,0.00022054,3]
[349624725,1737331847911,-500.0,0.00022054,3]
[349624726,1737331847920,-1436.56,0.00022054,3]
[349624727,1737331847930,-500.0,0.00022054,3]
[349624728,1737331847940,-886.96,0.00022054,3]
[349624729,1737331847949,-500.0,0.00022054,3]
[349624730,1737331847958,-506.49,0.00022054,3]
[349624731,1737331847968,-500.0,0.00022054,3]
[349624732,1737331847978,-500.0,0.00022054,3]
[349624733,1737331847994,-500.0,0.00022054,3]
[349624734,1737331848003,-500.0,0.00022054,3]
[349624735,1737331848015,-500.0,0.00022054,3]
[349624736,1737331848025,-500.0,0.00022054,3]
[349624737,1737331848035,-500.0,0.00022054,3]
[349624738,1737331848046,-1089.7,0.00022054,3]
[349624739,1737331848060,-500.0,0.00022054,3]
[349624740,1737331848197,-500.0,0.00022054,3]
[349624741,1737331848207,-500.0,0.00022054,3]
[349624742,1737331848217,-2679.32,0.00022054,3]
[349624743,1737331848227,-500.0,0.00022054,3]
[349624744,1737331848240,-500.0,0.00022054,3]
[349624745,1737331848251,-500.0,0.00022054,3]
[349624746,1737331848262,-4881.27,0.00022054,3]
[349624747,1737331848274,-500.0,0.00022054,3]
[349624748,1737331848285,-11987.1,0.00022054,3]
[349624749,1737331848297,-500.0,0.00022054,3]
[349624750,1737331848307,-500.0,0.00022054,3]
[349624751,1737331848317,-1049.37,0.00022054,3]
[349624752,1737331848327,-485.66478432,0.00022073,2]
[349624753,1737331848337,-500.0,0.00022073,2]
[349624754,1737331848350,-512.35044576,0.00022073,2]
[349624755,1737331848360,-189.282432,0.00022077,2]
[349624756,1737331848371,-189.282432,0.00022165,2]
[349624757,1737331848383,-500.0,0.00022173,2]
[349624758,1737331848395,-501.288916,0.00022173,2]
[349624759,1737331848404,-500.0,0.00022173,2]
[349624760,1737331848414,-151.0,0.0002218,2]
[349624761,1737331848424,-500.0,0.0002219,3]
[349624762,1737331848433,-648.76226547,0.0002219,3]
[349624763,1737331848443,-500.0,0.00022191,3]
[349624764,1737331848453,-500.0,0.00022191,3]
[349624765,1737331848463,-500.0,0.00022191,3]
[349624766,1737331848472,-500.0,0.00022191,3]
[349624767,1737331848481,-500.0,0.00022191,3]
[349624768,1737331848496,-500.0,0.00022191,3]
[349624769,1737331848505,-500.0,0.00022191,3]
[349624770,1737331848515,-500.0,0.00022191,3]
[349624771,1737331848525,-500.0,0.00022191,3]
[349624772,1737331848535,-500.0,0.00022191,3]
[349624773,1737331848544,-500.0,0.00022191,3]
[349624774,1737331848554,-500.0,0.00022191,3]
[349624775,1737331848563,-500.0,0.00022191,3]
[349624776,1737331848572,-500.0,0.00022191,3]
[349624777,1737331848586,-500.0,0.00022191,3]
[349624778,1737331848596,-500.0,0.00022191,3]
[349624779,1737331848605,-519.52,0.00022191,3]
[349624780,1737331848615,-500.0,0.00022191,3]
[349624781,1737331848624,-568.71,0.00022191,2]
[349624782,1737331848633,-500.0,0.00022191,3]
[349624783,1737331848642,-2332.42,0.00022191,3]
[349624784,1737331848652,-500.0,0.00022191,3]
[349624785,1737331848661,-500.0,0.00022191,3]
[349624786,1737331848671,-500.0,0.00022191,3]
[349624787,1737331848681,-500.0,0.00022191,3]
[349624788,1737331848691,-1744.06,0.00022191,3]
[349624789,1737331848700,-500.0,0.00022191,3]
[349624790,1737331848709,-500.0,0.00022191,3]
[349624791,1737331848719,-518.92,0.00022191,3]
[349624792,1737331848728,-500.0,0.00022191,3]
[349624793,1737331848740,-2816.29,0.00022191,3]
[349624794,1737331848749,-500.0,0.00022191,3]
[349624795,1737331848759,-515.77,0.00022191,3]
[349624796,1737331848768,-500.0,0.00022191,3]
[349624797,1737331848777,-500.0,0.00022191,3]
[349624798,1737331848787,-500.0,0.00022191,3]
[349624799,1737331848798,-7919.24,0.00022191,3]
[349624800,1737331848807,-500.0,0.00022191,3]
[349624801,1737331848817,-500.0,0.00022191,3]
[349624802,1737331848827,-975.66,0.00022191,3]
[349624803,1737331848836,-2931.55,0.00022191,3]
[349624804,1737331848845,-500.0,0.00022191,3]
[349624805,1737331848855,-5223.66,0.00022191,3]
[349624806,1737331848864,-516.29,0.00022191,3]
[349624807,1737331848874,-500.0,0.00022191,3]
[349624808,1737331848884,-500.0,0.00022191,3]
[349624809,1737331848894,-1116.88,0.00022191,3]
[349624810,1737331848904,-500.0,0.00022191,3]
[349624811,1737331848913,-500.0,0.00022191,3]
[349624812,1737331848923,-1436.56,0.00022191,3]
[349624813,1737331848933,-500.0,0.00022191,3]
[349624814,1737331848944,-886.96,0.00022191,3]
[349624815,1737331848954,-506.49,0.00022191,3]
[349624816,1737331848965,-500.0,0.00022191,3]
[349624817,1737331848978,-520.83,0.00022191,3]
[349624818,1737331848994,-500.0,0.00022191,3]
[349624819,1737331849005,-500.0,0.00022191,3]
[349624820,1737331849019,-1089.7,0.00022191,3]
[349624821,1737331849028,-500.0,0.00022191,3]
[349624822,1737331849038,-2679.32,0.00022191,3]
[349624823,1737331849048,-500.0,0.00022191,3]
[349624824,1737331849060,-479.05337189,0.00022191,3]
[349624825,1737331849071,-500.0,0.00022191,3]
[349624826,1737331849082,-4881.27,0.00022191,3]
[349624827,1737331849092,-500.0,0.00022191,3]
[349624828,1737331849104,-11987.1,0.00022191,3]
[349624829,1737331849114,-500.0,0.00022191,3]
[349624830,1737331849124,-33830.96826262,0.00022228,3]
[349624831,1737331849134,-189.282432,0.00022253,2]
[349624832,1737331849145,-4585.242279,0.000223,2]
[349624833,1737331849155,-500.0,0.00022328,3]
[349624834,1737331849164,-648.35578803,0.00022328,3]
[349624835,1737331849174,-500.0,0.00022328,3]
[349624836,1737331849185,-500.0,0.00022328,3]
[349624837,1737331849196,-500.0,0.00022328,3]
[349624838,1737331849206,-500.0,0.00022328,3]
[349624839,1737331849222,-500.0,0.00022328,3]
[349624840,1737331849240,-500.0,0.00022328,3]
[349624841,1737331849256,-500.0,0.00022328,3]
[349624842,1737331849271,-500.0,0.00022328,3]
[349624843,1737331849284,-500.0,0.00022328,3]
[349624844,1737331849311,-163.41791159,0.00022328,3]
[349624845,1737331849326,-500.0,0.00022328,3]
[349624846,1737331849340,-568.71,0.00022328,2]
[349624847,1737331849355,-2332.42,0.00022328,3]
[349624848,1737331849370,-500.0,0.00022328,3]
[349624849,1737331849384,-500.0,0.00022328,3]
[349624850,1737331849399,-500.0,0.00022328,3]
[349624851,1737331849414,-1744.06,0.00022328,3]
[349624852,1737331849427,-500.0,0.00022328,3]
[349624853,1737331849439,-518.92,0.00022328,3]
[349624854,1737331849451,-500.0,0.00022328,3]
[349624855,1737331849464,-2816.29,0.00022328,3]
[349624856,1737331849477,-500.0,0.00022328,3]
[349624857,1737331849493,-515.77,0.00022328,3]
[349624858,1737331849505,-500.0,0.00022328,3]
[349624859,1737331849518,-500.0,0.00022328,3]
[349624860,1737331849529,-500.0,0.00022328,3]
[349624861,1737331849542,-7919.24,0.00022328,3]
[349624862,1737331849555,-500.0,0.00022328,3]
[349624863,1737331849567,-975.66,0.00022328,3]
[349624864,1737331849581,-2931.55,0.00022328,3]
[349624865,1737331849593,-500.0,0.00022328,3]
[349624866,1737331849606,-5223.66,0.00022328,3]
[349624867,1737331849619,-516.29,0.00022328,3]
[349624868,1737331849634,-500.0,0.00022328,3]
[349624869,1737331849651,-500.0,0.00022328,3]
[349624870,1737331849665,-1116.88,0.00022328,3]
[349624871,1737331849679,-500.0,0.00022328,3]
[349624872,1737331849690,-1436.56,0.00022328,3]
[349624873,1737331849701,-500.0,0.00022328,3]
[349624874,1737331849711,-500.0,0.00022328,3]
[349624875,1737331849722,-886.96,0.00022328,3]
[349624876,1737331849738,-506.49,0.00022328,3]
[349624877,1737331849754,-500.0,0.00022328,3]
[349624878,1737331849768,-500.0,0.00022328,3]
[349624879,1737331849778,-500.0,0.00022328,3]
[349624880,1737331849790,-1089.7,0.00022328,3]
[349624881,1737331849802,-500.0,0.00022328,3]
[349624882,1737331849814,-2679.32,0.00022328,3]
[349624883,1737331849827,-500.0,0.00022328,3]
[349624884,1737331849838,-500.0,0.00022328,3]
[349624885,1737331849850,-4881.27,0.00022328,3]
[349624886,1737331849860,-500.0,0.00022328,3]
[349624887,1737331849871,-1354.93593584,0.00022328,3]
[349624888,1737331857560,5185.57953954,0.000236,120]
[349624892,1737332070923,160.0,0.00023625,120]
[349624893,1737332190771,160.0,0.00023675,120]
[349624894,1737332200280,208.44996562,0.0001,2]
[349624895,1737332310784,160.0,0.00023157,120]
[349624897,1737332323880,165.021594,0.00013973,2]
[349624898,1737332371408,160.0,0.00023452,120]
[349624914,1737332869896,500.0,0.000234,120]
[349624971,1737333032621,-174.236889,0.00020579,2]
[349624973,1737333032631,-630.55340194,0.00020829,2]
[349624987,1737333032887,-2184.92899866,0.00020829,2]
[349624988,1737333032897,-215.28971942,0.00020885,2]
[349624989,1737333032907,-788.8014244,0.00021575,2]
[349624990,1737333032918,-695.561,0.000216,2]
[349624991,1737333032929,-215.28971941,0.00021817,2]
[349624992,1737333032938,-154.4746844,0.000219,2]
[349624993,1737333032948,-163.40667112,0.000219,2]
[349624994,1737333032958,-1421.54860766,0.000219,3]
[349624995,1737333032967,-300.0,0.00021916,2]
[349624996,1737333032976,-157.86,0.00021917,2]
[349624997,1737333032986,-500.0,0.00021917,3]
[349624998,1737333032995,-500.0,0.00021917,2]
[349624999,1737333033005,-153.402,0.00021917,2]
[349625000,1737333033015,-500.0,0.00021917,3]
[349625001,1737333033024,-500.0,0.00021917,3]
[349625002,1737333033034,-500.0,0.00021917,3]
[349625003,1737333033044,-500.0,0.00021917,3]
[349625004,1737333033054,-500.0,0.00021917,3]
[349625005,1737333033062,-500.0,0.00021917,3]
[349625006,1737333033076,-500.0,0.00021917,3]
[349625007,1737333033086,-500.90890603,0.00021917,2]
[349625008,1737333033096,-448.54986947,0.00021917,3]
[349625045,1737333038516,-51.45013053,0.00021917,3]
[349625048,1737333038528,-457.86623758,0.00021917,2]
[349625050,1737333038544,-57.72376242,0.00021917,2]
[349625052,1737333038556,-304.75565975,0.00021917,3]
[349625055,1737333038572,-195.24434025,0.00021917,3]
[349625057,1737333038591,-500.0,0.00021917,3]
[349625060,1737333038603,-961.92,0.00021917,3]
[349625062,1737333038617,-500.0,0.00021917,3]
[349625064,1737333038630,-500.0,0.00021917,3]
[349625069,1737333038648,-500.0,0.00021917,3]
[349625073,1737333038662,-2346.91,0.00021917,3]
[349625076,1737333038677,-500.0,0.00021917,3]
[349625080,1737333038691,-500.0,0.00021917,3]
[349625083,1737333038705,-500.0,0.00021917,3]
[349625086,1737333038718,-500.0,0.00021917,3]
[349625089,1737333038730,-500.0,0.00021917,3]
[349625092,1737333038741,-2608.26,0.00021917,3]
[349625095,1737333038752,-5551.2773465,0.00021917,3]
[349625151,1737333040769,-1410.1626535,0.00021917,3]
[349625152,1737333040782,-3990.29,0.00021917,3]
[349625153,1737333040795,-500.0,0.00021917,3]
[349625154,1737333040808,-1197.13,0.00021917,3]
[349625155,1737333040820,-864.16,0.00021917,3]
[349625156,1737333040836,-627.77265548,0.00021917,3]
[349625157,1737333040848,-500.0,0.00021917,3]
[349625158,1737333040860,-500.0,0.00021917,3]
[349625159,1737333040872,-500.0,0.00021917,3]
[349625160,1737333040884,-6.48469102,0.00021917,3]